Cogmind - Beta 12 X1 @@@ ROGUE MODE // 2022.08.29 @ 16:51:59 Player: Decinym Result: Destroyed by H-66 Slayer with Gauss Rifle Performance ------------- Evolutions (3) 1500 Regions Visited (16) 3200 Robots Destroyed (198) 990 Value Destroyed (6491) 6491 Prototype IDs (43) 860 Alien Tech Used (0) 0 Bonus (913) 913 TOTAL SCORE: 13954 Bonus ------- High Alert Combat Kills 572 Follower Combat Kills 504 Entered Garrisons 600 Aligned with FarCom 300 Met Data Miner 300 Friendly Fire -1363 Cogmind --------- Core Integrity 0/700 Matter 300/300 Energy 36/100 System Corruption 19% Temperature Cool (0) Movement Core (50) Location -6/Proximity Caves Parts ------- > --- POWER (1) -------- (None) > --- PROPULSION (4) --- (None) > --- UTILITY (6) ------ Encrypted Comm Array Graphene Brace > --- WEAPON (2) ------- (None) > --- INVENTORY (5) ---- YI-UF0's Bottomless Matter Pit (885) Advanced Salvage Targeting Computer Improved Transmission Jammer EM Pulse Cannon Powered Hammer Peak State ------------ > --- POWER ------------ Improved Deuterium Engine > --- PROPULSION ------- Light Treads Light Treads Improved Treads Medium Treads > --- UTILITY ---------- Advanced Cooling System Huge Storage Unit Active Sensor Suite Advanced Targeting Computer > --- WEAPON ----------- Minigun Railgun > --- INVENTORY -------- Micro Fission Core Armored Treads Biometal Leg Huge Storage Unit YI-UF0's Bottomless Matter Pit Experimental Sensor Array Improved Signal Interpreter Advanced Salvage Targeting Computer Improved Transmission Jammer Advanced Phase Shifter Improved Heavy Armor Plating Medium Reactive Plating Powered Armor Powered Armor Graphene Brace Improved Shield Generator Improved System Shield EM Pulse Cannon EM Pulse Cannon EM Pulse Cannon Minigun Rocket Launcher Improved Grenade Launcher Powered Hammer [Rating: 70] Favorites ----------- Power Cooled Ion Engine Engine Cooled Ion Engine Power Core Neutrino Core Propulsion Armored Treads Treads Armored Treads Leg Aluminum Leg Wheel Armored Huge Wheel Utility Advanced Cooling System Device Advanced Cooling System Storage High-capacity Storage Unit Processor Advanced Targeting Computer Protection Powered Armor Weapon Heavy Particle Gun Energy Gun Heavy Particle Gun Energy Cannon EM Pulse Cannon Ballistic Gun Railgun Ballistic Cannon Heavy Assault Cannon Launcher Improved Grenade Launcher Build | -11 -10 -10 -10 -9 -8 -8 -8 -8 -8 -8 -8 -7 -7 -7 -7 -6 ------- Run | Scr Mat Min Exi Min Mat Gar Mat Gar Mat Gar Mat Fac Low Low Dat Pro Slots Evolved 6 | . . . . . 4 . . . . . . 2 . . . . Power . | . . . . . . . . . . . . . . . . . Propulsion 2 | . . . . . 1 . . . . . . 1 . . . . Utility 4 | . . . . . 3 . . . . . . 1 . . . . Weapon . | . . . . . . . . . . . . . . . . . Parts Attached 171 | . 1 12 1 7 43 6 4 15 7 12 8 32 1 2 2 18 Power 15 | . . 2 . . 5 1 . . 2 . . 4 . . . 1 Engine 10 | . . 2 . . 2 . . . 2 . . 4 . . . . Core 5 | . . . . . 3 1 . . . . . . . . . 1 Reactor . | . . . . . . . . . . . . . . . . . Propulsion 43 | . . 7 . 1 11 1 3 5 1 2 2 7 . . . 3 Treads 30 | . . 3 . . 9 1 3 4 1 2 2 5 . . . . Leg 9 | . . 2 . 1 2 . . 1 . . . . . . . 3 Wheel 4 | . . 2 . . . . . . . . . 2 . . . . Hover . | . . . . . . . . . . . . . . . . . Flight . | . . . . . . . . . . . . . . . . . Utility 54 | . 1 1 . 3 13 3 1 3 3 4 . 14 1 . . 7 Device 19 | . . 1 . 1 5 2 . 1 . . . 5 1 . . 3 Storage 7 | . 1 . . 1 1 . . . 1 . . 2 . . . 1 Processor 6 | . . . . . 2 . 1 . . . . 3 . . . . Hackware . | . . . . . . . . . . . . . . . . . Protection 22 | . . . . 1 5 1 . 2 2 4 . 4 . . . 3 Artifact . | . . . . . . . . . . . . . . . . . Weapon 59 | . . 2 1 3 14 1 . 7 1 6 6 7 . 2 2 7 Energy Gun 15 | . . 1 . . 9 1 . 2 . . . 1 . . . 1 Energy Cannon 5 | . . . . . 1 . . 1 . 1 . . . . . 2 Ballistic Gun 20 | . . 1 1 2 . . . 3 1 3 3 3 . . 2 1 Ballistic Cannon 4 | . . . . . . . . . . . . 2 . 1 . 1 Launcher 15 | . . . . 1 4 . . 1 . 2 3 1 . 1 . 2 Special Weapon . | . . . . . . . . . . . . . . . . . Impact Weapon . | . . . . . . . . . . . . . . . . . Slashing Weapon . | . . . . . . . . . . . . . . . . . Piercing Weapon . | . . . . . . . . . . . . . . . . . Special Melee Weapon . | . . . . . . . . . . . . . . . . . Unidentified Prototypes 10 | . . . . 2 4 . . . 1 . . 1 . . . 2 Corrupted Parts 1 | . . . . . . . . . . . . 1 . . . . System Corruption 10 | . . . . . . . . . . . . 10 . . . . Parts Lost 49 | . . 7 . . 12 . . 4 . 2 . 4 . . . 20 Power 6 | . . 2 . . 3 . . . . . . . . . . 1 Propulsion 14 | . . 3 . . 3 . . 1 . 1 . 1 . . . 5 Utility 14 | . . . . . 4 . . 1 . . . 3 . . . 6 Weapon 15 | . . 2 . . 2 . . 2 . 1 . . . . . 8 Highest Loss Streak 11 | . . 6 . . 11 . . 4 . 1 . 4 . . . 8 To Critical Strikes 1 | . . . . . . . . . . 1 . . . . . . Average Slot Usage (%) 91 | . 86 86 97 99 93 90 90 89 98 92 90 88 84 84 76 80 Engine 6 | . 14 10 14 14 6 . . . 6 9 9 6 7 7 7 6 Core 3 | . . . . . 2 9 9 9 2 . . . . . . . Treads 21 | . . 17 . . 20 27 27 26 27 27 27 28 15 15 15 9 Leg 4 | . 28 6 28 28 5 . . . . . . . . . . 4 Device 11 | . . 12 14 9 7 9 9 9 9 9 9 13 28 30 30 23 Storage 9 | . 15 14 14 14 9 9 9 9 9 9 9 7 7 7 7 6 Processor 7 | . . . . . 13 9 9 9 9 9 9 11 . . . . Protection 8 | . . . . 4 9 9 9 9 16 11 9 3 8 7 7 7 Energy Gun 8 | . 14 11 14 8 16 18 18 13 . . . . . . . . Ballistic Gun 7 | . 14 10 11 18 . . . 2 18 11 15 12 . . . 11 Naked Turns . | . . . . . . . . . . . . . . . . . Heaviest Build 144 | 11 31 28 27 30 74 82 82 83 121 122 114 144 144 125 119 138 Greatest Support 91 | 20 20 40 20 25 66 65 65 67 67 67 60 91 28 28 28 48 Greatest Overweight (x) 8 | . 1 2 1 1 1 1 1 2 1 2 1 8 5 4 4 4 Average Overweight (x) 1 | . . . 1 1 . 1 1 1 . 1 1 1 4 4 4 3 Largest Inventory Capacity 25 | . 15 15 15 15 20 20 20 20 25 25 25 25 25 25 25 25 Average Capacity 21 | . 14 15 15 15 18 20 20 20 22 25 25 25 25 25 25 24 Most Carried 25 | . 8 8 6 14 20 20 20 20 25 25 25 25 25 25 25 25 Average Carried 19 | . 7 4 5 10 17 19 19 19 22 24 24 24 24 24 24 22 Final Capacity 25 | 8 15 15 15 15 20 20 20 20 25 25 25 25 25 25 25 5 Final Carried 25 | 6 8 4 6 12 20 20 20 20 25 25 25 23 25 25 25 5 Class Distribution -------------------- 62% | Mutant 18% | Scavenger-Mutant 9% | Commander-Mutant 5% | Scavenger-Skirmisher 3% | Skirmisher Dominant Class ---------------- Mutant | -10/Materials Mutant | -10/Mines Scavenger-Mutant | -10/Exiles Scavenger-Mutant | -9/Mines Scavenger-Mutant | -8/Materials Commander-Mutant | -8/Garrison Mutant | -8/Materials Mutant | -8/Garrison Mutant | -8/Materials Mutant | -8/Garrison Mutant | -8/Materials Scavenger-Skirmisher | -7/Factory Mutant | -7/Lower Caves Mutant | -7/Lower Caves Mutant | -7/Data Miner Mutant | -6/Proximity Caves Resources | -11 -10 -10 -10 -9 -8 -8 -8 -8 -8 -8 -8 -7 -7 -7 -7 -6 ----------- Run | Scr Mat Min Exi Min Mat Gar Mat Gar Mat Gar Mat Fac Low Low Dat Pro Matter Collected 6623 | 174 15 299 . 373 1311 . 554 289 716 257 266 1339 131 121 . 778 Remotely . | . . . . . . . . . . . . . . . . . Salvage Created 7267 | . 73 216 . 120 1632 . 419 917 1049 267 543 1084 48 156 . 743 Parts 379 | . 5 9 . 6 100 . 22 46 57 18 33 51 4 8 . 20 Haulers Intercepted 8 | . . . . . 4 . . . 2 . . 2 . . . . Recyclers Shooed 5 | . . . . . . . 1 . . . . 4 . . . . Parts Field Recycled . | . . . . . . . . . . . . . . . . . Retrieved Matter . | . . . . . . . . . . . . . . . . . Parts Self-Destructed 26 | . . . . . . . . . . . . . 3 7 . 16 Prevented . | . . . . . . . . . . . . . . . . . Kills | -11 -10 -10 -10 -9 -8 -8 -8 -8 -8 -8 -8 -7 -7 -7 -7 -6 ------- Run | Scr Mat Min Exi Min Mat Gar Mat Gar Mat Gar Mat Fac Low Low Dat Pro Combat Hostiles Destroyed 164 | . 4 5 . . 40 . 12 27 13 12 13 18 1 4 . 15 Guns 119 | . 4 5 . . 28 . 12 23 13 3 7 13 . . . 11 Cannons 4 | . . . . . . . . . . 1 . 1 1 1 . . AOE 38 | . . . . . 12 . . 3 . 7 6 3 . 3 . 4 Classes Destroyed 21 | . 1 3 . . 8 . 1 3 1 . . . 1 1 . 2 Worker 5 | . . . . . 2 . . . 1 . 1 1 . . . . Builder 5 | . . 1 . . 1 . . . 2 . 1 . . . . . Hauler 8 | . . . . . 4 . . . 2 . . 2 . . . . Recycler 5 | . . . . . 1 . . . 2 . . 2 . . . . Minesweeper 1 | . . . . . . . . . . . . . 1 . . . Mechanic 3 | . . . . . 1 . 1 . . . . 1 . . . . Operator 2 | . . . . . . . . . 2 . . . . . . . Watcher 4 | . . . . . 1 . . . 3 . . . . . . . Swarmer 50 | . 4 . . . 15 . 6 9 3 7 2 2 . . . 2 Cutter 2 | . . . . . 2 . . . . . . . . . . . Grunt 56 | . . 4 . . 14 . 2 9 2 2 9 5 . 3 . 6 Brawler 4 | . . . . . . . . . . . . . . 1 . 3 Duelist 5 | . . . . . . . . 1 1 1 . . . . . 2 Protector 1 | . . . . . . . . . . . . . . . . 1 Sentry 27 | . . . . . 8 . 3 4 7 2 2 1 . . . . Specialist 3 | . . . . . . . 1 . . . . 2 . . . . Hunter 6 | . . . . . 1 . . 2 . . . 2 1 . . . Programmer 6 | . . . . . . . . 1 . . . 5 . . . . Heavy 2 | . . . . . . . . 1 . . . 1 . . . . Behemoth 1 | . . . . . . . . . . . . . . . . 1 Enhanced Grunt 1 | . . . . . . . . . . . . . . . . 1 Decomposer 1 | . . . . . . . . . . . . . 1 . . . Assembled 1 | . . 1 . . . . . . . . . . . . . . Best Kill Streak 8 | . 3 3 . . 8 . 3 5 6 5 6 7 1 3 . 8 Combat Bots Only 8 | . 3 2 . . 7 . 3 5 2 5 5 5 1 3 . 8 Max Kills in Single Turn 5 | . 1 2 . 1 5 . 1 1 2 2 2 2 1 2 . 2 Gunslinging 1 | . . . . . 1 . . . . . . . . . . . Exploded 4 | . . . . . 4 . . 1 . 2 2 2 . 2 . 2 Melee . | . . . . . . . . . . . . . . . . . Uniques/NPCs Destroyed 1 | . . . . 1 . . . . . . . . . . . . YI-UF0 (-9/Mines) Combat | -11 -10 -10 -10 -9 -8 -8 -8 -8 -8 -8 -8 -7 -7 -7 -7 -6 -------- Run | Scr Mat Min Exi Min Mat Gar Mat Gar Mat Gar Mat Fac Low Low Dat Pro Damage Taken 12831 | . 95 902 65 . 2474 . 362 1999 794 875 539 1497 22 88 . 3119 Core 1342 | . 16 132 . . 346 . 20 118 . . . 112 . 9 . 589 Absorbed by Shields 253 | . . . . . . . . . . 10 . . 8 36 . 199 Regen/Repaired (Parts) 211 | . . . . . 211 . . . . . . . . . . . Core Remaining (%) 50 | 100 . . . 40 . . . . . . 12 . . . . . Volleys Fired 515 | . 10 23 1 11 104 . 29 75 64 25 24 66 7 18 . 58 Largest 2 | . 2 2 2 2 2 . 2 2 2 2 2 2 1 1 . 2 Hottest 126 | . 70 70 60 43 111 . 110 110 68 98 60 105 60 60 . 126 Shots Fired 928 | . 20 45 2 22 189 . 58 140 128 42 38 119 9 20 . 96 Gun 821 | . 20 45 2 22 181 . 58 130 128 28 28 105 . . . 74 Cannon 66 | . . . . . . . . 4 . 6 . 11 9 17 . 19 Launcher 41 | . . . . . 8 . . 6 . 8 10 3 . 3 . 3 Special . | . . . . . . . . . . . . . . . . . Kinetic 485 | . 10 22 1 22 . . . 30 128 28 28 104 9 17 . 86 Thermal 388 | . 10 23 1 . 181 . 58 100 . . . 12 . . . 3 Explosive 41 | . . . . . 8 . . 6 . 8 10 3 . 3 . 3 Electromagnetic 14 | . . . . . . . . 4 . 6 . . . . . 4 Robot Hit Streak 32 | . 4 14 . 6 32 . 15 21 19 13 11 15 6 5 . 11 Robot Miss Streak 5 | . 2 3 2 2 4 . 3 2 5 1 1 3 1 3 . 2 Penetration Max 1 | . . . . . . . . . 1 1 . . . . . . Secondary Targets 26 | . . . . . 6 . 2 7 . 1 2 3 . . . 5 Max Gunslinging Chain 1 | . . . . . 1 . 1 1 . 1 1 1 . . . 1 Shots Hit Robots 666 | . 10 32 . 15 140 . 44 108 86 32 27 90 6 7 . 69 Core Hits 319 | . 5 14 . 6 73 . 18 45 29 14 24 43 2 6 . 40 Critical Kills 2 | . . . . . . . . 1 . . . . . . . 1 Critical Parts Destroyed 5 | . . . . . . . . . 2 1 . 2 . . . . Critical Strikes 31 | . 1 1 . . 6 . 8 4 2 1 . 3 1 1 . 3 Burn 19 | . 1 1 . . 6 . 8 3 . . . . . . . . Destroy 7 | . . . . . . . . 1 2 1 . 2 . . . 1 Blast 5 | . . . . . . . . . . . . 1 1 1 . 2 Melee Attacks . | . . . . . . . . . . . . . . . . . Impact . | . . . . . . . . . . . . . . . . . Slashing . | . . . . . . . . . . . . . . . . . Piercing . | . . . . . . . . . . . . . . . . . Sneak Attacks . | . . . . . . . . . . . . . . . . . Combat Hostiles . | . . . . . . . . . . . . . . . . . Follow-up Attacks . | . . . . . . . . . . . . . . . . . Damage Inflicted 18320 | . 110 390 . 235 3399 . 895 2784 2305 1401 1268 2473 288 433 . 2339 Guns 12652 | . 106 390 . 198 2635 . 890 2142 2305 686 507 1830 . . . 963 Cannons 1506 | . . . . . . . . . . 132 . 248 288 164 . 674 Explosions 4094 | . . . . . 764 . . 642 . 583 761 373 . 269 . 702 Melee . | . . . . . . . . . . . . . . . . . Ramming 68 | . 4 . . 37 . . 5 . . . . 22 . . . . Kinetic 8267 | . 32 167 . 198 . . . 654 2305 686 507 1762 288 164 . 1504 Thermal 5804 | . 74 223 . . 2635 . 890 1488 . . . 316 . . . 178 Explosive 4007 | . . . . . 764 . . 642 . 583 761 373 . 269 . 615 Electromagnetic 174 | . . . . . . . . . . 132 . . . . . 42 Impact . | . . . . . . . . . . . . . . . . . Slashing . | . . . . . . . . . . . . . . . . . Piercing . | . . . . . . . . . . . . . . . . . Highest Corruption 19 | . . . . . . . . . . . . 14 14 14 14 19 Average Corruption 9 | . . . . . . . . . . . . 3 14 14 14 15 Corruption Purged . | . . . . . . . . . . . . . . . . . Corruption Blocked . | . . . . . . . . . . . . . . . . . Effects 111 | . . . . . . . . . . . . 33 25 22 6 25 Message Errors 28 | . . . . . . . . . . . . 10 7 5 . 6 Matter Fused 29 | . . . . . . . . . . . . 7 8 6 2 6 Heat Flow Errors 8 | . . . . . . . . . . . . . 3 1 . 4 Energy Discharges 11 | . . . . . . . . . . . . 4 3 2 1 1 Parts Rejected 1 | . . . . . . . . . . . . 1 . . . . Data Loss (minor) 14 | . . . . . . . . . . . . 6 1 3 3 1 Data Loss (major) 8 | . . . . . . . . . . . . 2 1 3 . 2 Misfires 8 | . . . . . . . . . . . . 2 2 2 . 2 Weapon Failures 4 | . . . . . . . . . . . . 1 . . . 3 Overload Shots . | . . . . . . . . . . . . . . . . . Overflow Damage 415 | . . . . . 59 . . 14 . 126 84 18 107 7 . . Projectiles 132 | . . . . . . . . . . . . 18 107 7 . . Explosions 283 | . . . . . 59 . . 14 . 126 84 . . . . . Melee . | . . . . . . . . . . . . . . . . . Knockbacks 3 | . . . . . . . . . . . . 2 1 . . . Impact . | . . . . . . . . . . . . . . . . . Kinetic 3 | . . . . . . . . . . . . 2 1 . . . Secondary . | . . . . . . . . . . . . . . . . . Self-Inflicted Damage 289 | . . . . . 84 . . 32 . 25 . . . . . 148 Shots 8 | . . . . . 3 . . 1 . 1 . . . . . 3 Rammed 2 | . . . . . . . 1 . . . . 1 . . . . Targets Rammed 15 | . 1 . . 11 . . 2 . . . . 1 . . . . Kicked 12 | . 1 . . 11 . . . . . . . . . . . . Crushed 1 | . . . . . . . 1 . . . . . . . . . Highest Temperature 420 | . 102 331 13 . 132 . 1 19 420 . . 7 205 279 . 316 Average Temperature 75 | . 45 179 13 . 30 . 1 3 198 . . 4 77 150 . 110 Received Heat Transfer 3045 | . . 186 54 . 549 . 63 513 306 315 297 135 . 48 . 579 Effects 2 | . . 1 . . . . . . . . . . . . . 1 Matter Decay 1 | . . . . . . . . . . . . . . . . 1 Short Circuit 1 | . . 1 . . . . . . . . . . . . . . Siege Activations . | . . . . . . . . . . . . . . . . . Robots Corrupted 1 | . . . . . . . . . . 1 . . . . . . Combat Hostiles 1 | . . . . . . . . . . 1 . . . . . . Parts Fried 1 | . . . . . . . . . . 1 . . . . . . Impact Corruptions . | . . . . . . . . . . . . . . . . . Robots Melted 2 | . . . . . . . . 1 . . . 1 . . . . Combat Hostiles 2 | . . . . . . . . 1 . . . 1 . . . . Parts Melted 44 | . 1 1 . . 19 . 7 10 . . . 6 . . . . Heat Transferred 12646 | . 296 740 . . 5550 . 2294 2916 . . . 650 . . . 200 Parts Sabotaged . | . . . . . . . . . . . . . . . . . Parts Stolen . | . . . . . . . . . . . . . . . . . Parts Stripped . | . . . . . . . . . . . . . . . . . Power Chain Reactions 1 | . . . . . . . . . . . . . . . . 1 Missiles Intercepted . | . . . . . . . . . . . . . . . . . Alert | -11 -10 -10 -10 -9 -8 -8 -8 -8 -8 -8 -8 -7 -7 -7 -7 -6 ------- Run | Scr Mat Min Exi Min Mat Gar Mat Gar Mat Gar Mat Fac Low Low Dat Pro Peak Influence 1160 | . 143 172 . . 398 884 793 1160 565 719 612 284 . . . . Initial 565 | . . 55 . . . 154 430 276 565 242 350 193 . . . . Average 324 | . 43 72 . . 147 443 496 787 267 554 325 143 . . . . Maximum Alert Level 4 | . . . . . 1 3 3 4 2 3 2 1 . . . . Low Security (%) 40 | . 100 100 . 100 71 1 . . 23 . 29 81 . . . . Level 1 28 | . . . . . 28 55 22 6 75 15 31 18 . . . . Level 2 21 | . . . . . . 27 72 14 . 80 39 . . . . . Level 3 10 | . . . . . . 14 5 76 . 3 . . . . . . Level 4 . | . . . . . . . . 3 . . . . . . . . Level 5 . | . . . . . . . . . . . . . . . . . High Security . | . . . . . . . . . . . . . . . . . Max Security . | . . . . . . . . . . . . . . . . . Squads Dispatched 20 | . . . . . 6 . 3 . 1 . 2 7 . . . 1 Investigation 6 | . . . . . 3 . . . . . 1 2 . . . . Extermination 3 | . . . . . . . . . . . . 3 . . . . Reinforcement 9 | . . . . . 3 . 2 . 1 . 1 2 . . . . Assault 2 | . . . . . . . 1 . . . . . . . . 1 Garrison . | . . . . . . . . . . . . . . . . . Intercept . | . . . . . . . . . . . . . . . . . Searches Triggered . | . . . . . . . . . . . . . . . . . Construction Impeded . | . . . . . . . . . . . . . . . . . Haulers Reinforced . | . . . . . . . . . . . . . . . . . Active Scanning Responses 1 | . . . . . . . . . . . . 1 . . . . Cargo Convoy Interrupts . | . . . . . . . . . . . . . . . . . Stealth | -11 -10 -10 -10 -9 -8 -8 -8 -8 -8 -8 -8 -7 -7 -7 -7 -6 --------- Run | Scr Mat Min Exi Min Mat Gar Mat Gar Mat Gar Mat Fac Low Low Dat Pro Distress Signals 14 | . 1 . . . 5 . 5 . 1 . 2 . . . . . Communications Jammed . | . . . . . . . . . . . . . . . . . Distress Signals . | . . . . . . . . . . . . . . . . . Times Spotted 244 | . 9 10 1 . 52 . 38 33 23 13 18 21 1 4 . 21 Peak Tracking Total 10 | . 3 5 10 . 9 . 4 7 3 5 5 4 . 3 . 9 Tactical Retreats 15 | . 1 . . . 2 . . 3 4 1 3 . . . . 1 Traps | -11 -10 -10 -10 -9 -8 -8 -8 -8 -8 -8 -8 -7 -7 -7 -7 -6 ------- Run | Scr Mat Min Exi Min Mat Gar Mat Gar Mat Gar Mat Fac Low Low Dat Pro Traps Triggered 13 | . . . . . 3 . . 6 . 2 1 1 . . . . Indirectly . | . . . . . . . . . . . . . . . . . Trap Hack Attempts . | . . . . . . . . . . . . . . . . . Triggered . | . . . . . . . . . . . . . . . . . Disarmed . | . . . . . . . . . . . . . . . . . Reprogrammed . | . . . . . . . . . . . . . . . . . Reused . | . . . . . . . . . . . . . . . . . Traps Extracted . | . . . . . . . . . . . . . . . . . Installed . | . . . . . . . . . . . . . . . . . Triggered 3 | . . . . . . . . . . . . . . 3 . . Most Traps Carried 1 | . . . . . . . . . . . . . 1 1 1 1 Machines | -11 -10 -10 -10 -9 -8 -8 -8 -8 -8 -8 -8 -7 -7 -7 -7 -6 ---------- Run | Scr Mat Min Exi Min Mat Gar Mat Gar Mat Gar Mat Fac Low Low Dat Pro Machines Disabled 22 | . . . . . 1 . 1 5 7 1 5 2 . . . . Max in Single Turn 2 | . . . . . 1 . . 1 1 1 2 1 . . . . Machines Sabotaged . | . . . . . . . . . . . . . . . . . Garrisons Compromised . | . . . . . . . . . . . . . . . . . Overloaded Fab Kills . | . . . . . . . . . . . . . . . . . Hacking | -11 -10 -10 -10 -9 -8 -8 -8 -8 -8 -8 -8 -7 -7 -7 -7 -6 --------- Run | Scr Mat Min Exi Min Mat Gar Mat Gar Mat Gar Mat Fac Low Low Dat Pro Machines Accessed 47 | . 1 1 2 . 13 2 7 1 7 . 2 7 . . 4 . Terminals 31 | . 1 1 . . 9 2 6 1 6 . 2 3 . . . . Fabricators 4 | . . . . . . . . . . . . 4 . . . . Repair Stations 1 | . . . . . 1 . . . . . . . . . . . Recycling Units . | . . . . . . . . . . . . . . . . . Scanalyzers 2 | . . . . . 2 . . . . . . . . . . . Garrison Access 3 | . . . . . 1 . 1 . 1 . . . . . . . Total Hacks 146 | . 5 4 2 . 45 2 19 1 18 . 7 15 . . 28 . Successful 89 | . 3 2 2 . 27 2 7 1 11 . 3 3 . . 28 . Failed 57 | . 2 2 . . 18 . 12 . 7 . 4 12 . . . . Catastrophic 12 | . . . . . 4 . 5 . . . 1 2 . . . . Database Lockouts . | . . . . . . . . . . . . . . . . . Manual 62 | . 5 4 1 . 20 . 13 . 8 . 1 10 . . . . Terminals 86 | . 5 4 . . 28 2 18 1 17 . 7 4 . . . . Fabricators 11 | . . . . . . . . . . . . 11 . . . . Repair Stations 6 | . . . . . 6 . . . . . . . . . . . Recycling Units . | . . . . . . . . . . . . . . . . . Scanalyzers 9 | . . . . . 9 . . . . . . . . . . . Garrison Access 4 | . . . . . 2 . 1 . 1 . . . . . . . Terminal Hacks 67 | . 3 2 2 . 11 2 4 1 9 . 3 2 . . 28 . Record 12 | . . . 1 . . . . . . . . . . . 11 . Part Schematic 13 | . 1 2 . . . . . . . . . . . . 10 . Robot Schematic 4 | . . . . . . . . . . . . . . . 4 . Robot Analysis 1 | . . . . . 1 . . . . . . . . . . . Prototype ID Bank 3 | . . . . . . . . . . . . . . . 3 . Open DSF 1 | . . . . . . . . . . . . 1 . . . . Level Access Points 1 | . . . . . . . . . 1 . . . . . . . Branch Access Points 3 | . 1 . . . 1 . . . . . . 1 . . . . Emergency Access Points 1 | . . . . . . 1 . . . . . . . . . . Alert Level 5 | . . . . . 2 . 1 . 1 . 1 . . . . . Unreport Threat 10 | . . . . . 3 . 2 . 3 . 2 . . . . . Hauler Manifests 1 | . . . . . . . . . 1 . . . . . . . Zone Layout 9 | . 1 . . . 4 . 1 . 3 . . . . . . . Garrison Registry 1 | . . . . . . . . 1 . . . . . . . . Security Stations 1 | . . . . . . 1 . . . . . . . . . . EX-Prototype ID Bank 1 | . . . 1 . . . . . . . . . . . . . Fabricator Hacks 1 | . . . . . . . . . . . . 1 . . . . Build 1 | . . . . . . . . . . . . 1 . . . . Repair Station Hacks 6 | . . . . . 6 . . . . . . . . . . . Scan Component 3 | . . . . . 3 . . . . . . . . . . . Repair 3 | . . . . . 3 . . . . . . . . . . . Recycling Unit Hacks . | . . . . . . . . . . . . . . . . . Scanalyzer 6 | . . . . . 6 . . . . . . . . . . . Insert Component 3 | . . . . . 3 . . . . . . . . . . . Analyze 3 | . . . . . 3 . . . . . . . . . . . Garrison Access Hacks 3 | . . . . . 1 . 1 . 1 . . . . . . . Unlock Access 3 | . . . . . 1 . 1 . 1 . . . . . . . Unauthorized Hacks 6 | . . . . . 3 . 2 . 1 . . . . . . . Terminals 6 | . . . . . 3 . 2 . 1 . . . . . . . Botnet 6 | . . . . . 3 . 2 . 1 . . . . . . . Fabricators . | . . . . . . . . . . . . . . . . . Repair Stations . | . . . . . . . . . . . . . . . . . Recycling Units . | . . . . . . . . . . . . . . . . . Scanalyzers . | . . . . . . . . . . . . . . . . . Garrison Access . | . . . . . . . . . . . . . . . . . Data Cores Recovered . | . . . . . . . . . . . . . . . . . Used . | . . . . . . . . . . . . . . . . . Hacking Detections 35 | . 1 1 . . 12 1 6 1 5 . 2 6 . . . . Full Trace Events 2 | . . . . . 1 . . . . . . 1 . . . . Feedback Events . | . . . . . . . . . . . . . . . . . Feedback Blocked . | . . . . . . . . . . . . . . . . . Robot Schematics Acquired 4 | . . . . . . . . . . . . . . . 4 . Robots Built . | . . . . . . . . . . . . . . . . . Authchips . | . . . . . . . . . . . . . . . . . Time . | . . . . . . . . . . . . . . . . . Total Robot Build Rating . | . . . . . . . . . . . . . . . . . Part Schematics Acquired 14 | . 1 2 . . 1 . . . . . . . . . 10 . Parts Built 2 | . . . . . . . . . . . . 2 . . . . Authchips . | . . . . . . . . . . . . . . . . . Time 53 | . . . . . . . . . . . . 53 . . . . Total Part Build Rating 12 | . . . . . . . . . . . . 12 . . . . Parts Repaired 3 | . . . . . 3 . . . . . . . . . . . Time 224 | . . . . . 224 . . . . . . . . . . . Parts Recycled . | . . . . . . . . . . . . . . . . . Recycled Matter . | . . . . . . . . . . . . . . . . . Retrieved Matter . | . . . . . . . . . . . . . . . . . Retrieved Components . | . . . . . . . . . . . . . . . . . Parts Scanalyzed 1 | . . . . . 1 . . . . . . . . . . . Part Schematics Acquired 1 | . . . . . 1 . . . . . . . . . . . Parts Damaged . | . . . . . . . . . . . . . . . . . Bothacking | -11 -10 -10 -10 -9 -8 -8 -8 -8 -8 -8 -8 -7 -7 -7 -7 -6 ------------ Run | Scr Mat Min Exi Min Mat Gar Mat Gar Mat Gar Mat Fac Low Low Dat Pro Used RIF Installer . | . . . . . . . . . . . . . . . . . Robots Hacked . | . . . . . . . . . . . . . . . . . Non-combat . | . . . . . . . . . . . . . . . . . Combat . | . . . . . . . . . . . . . . . . . Robot Hacks Applied . | . . . . . . . . . . . . . . . . . Relay Couplers Released . | . . . . . . . . . . . . . . . . . Fabnet Peak Effective % . | . . . . . . . . . . . . . . . . . Robots Rewired 8 | . . . . . . 8 . . . . . . . . . . Allies Hacked . | . . . . . . . . . . . . . . . . . Hacks Repelled . | . . . . . . . . . . . . . . . . . Allies | -11 -10 -10 -10 -9 -8 -8 -8 -8 -8 -8 -8 -7 -7 -7 -7 -6 -------- Run | Scr Mat Min Exi Min Mat Gar Mat Gar Mat Gar Mat Fac Low Low Dat Pro Total Allies 11 | . . . . . . 8 . 2 . . . . . . . 1 Largest Group 8 | . . . . . . 8 8 2 . . . . . . . 1 Highest-Rated Group 124 | . . . . . . 124 124 56 . . . . . . . 96 Highest-Rated Ally 96 | . . . . . . 21 21 31 . . . . . . . 96 Total Orders . | . . . . . . . . . . . . . . . . . Ally Attacks 102 | . . . . . . . 82 16 . . . . . . . 4 Total Damage 2007 | . . . . . . . 1490 371 . . . . . . . 146 Kills 22 | . . . . . . . 17 3 . . . . . . . 2 Allies Corrupted . | . . . . . . . . . . . . . . . . . Allies Melted 1 | . . . . . . . . 1 . . . . . . . . Intel | -11 -10 -10 -10 -9 -8 -8 -8 -8 -8 -8 -8 -7 -7 -7 -7 -6 ------- Run | Scr Mat Min Exi Min Mat Gar Mat Gar Mat Gar Mat Fac Low Low Dat Pro Robot Analysis Total 1 | . . . . . 1 . . . . . . . . . . . Derelict Logs Recovered 4 | . . 2 . . . . . . . . . . 1 . . 1 Drone Launches . | . . . . . . . . . . . . . . . . . Drone Recoveries . | . . . . . . . . . . . . . . . . . Exploration | -11 -10 -10 -10 -9 -8 -8 -8 -8 -8 -8 -8 -7 -7 -7 -7 -6 ------------- Run | Scr Mat Min Exi Min Mat Gar Mat Gar Mat Gar Mat Fac Low Low Dat Pro Turns Passed 17040 | . 269 567 777 935 2162 1615 1654 1432 1817 1249 448 2289 679 505 158 484 Spaces Moved 7049 | 1 131 303 406 454 938 657 647 487 641 401 150 866 404 287 96 180 Core 4 | . . . . . . . . . . . . . . . . 4 Treads 4690 | . . 197 . . 731 657 647 486 641 401 150 780 . . . . Legs 1252 | 1 131 46 406 454 207 . . 1 . . . . . . . 6 Wheels 1103 | . . 60 . . . . . . . . . 86 404 287 96 170 Hover . | . . . . . . . . . . . . . . . . . Flight . | . . . . . . . . . . . . . . . . . Fastest Speed 50 | 120 120 110 190 190 120 230 235 241 170 246 243 175 160 160 160 50 Average Speed 210 | 120 180 154 190 190 175 234 239 242 249 247 245 234 163 160 160 160 Slowest Speed 326 | 120 190 260 190 190 230 235 241 250 250 326 246 323 175 160 160 320 Overloaded Moves . | . . . . . . . . . . . . . . . . . Propulsion Burnouts . | . . . . . . . . . . . . . . . . . Robots Hopped . | . . . . . . . . . . . . . . . . . Cave-ins Triggered . | . . . . . . . . . . . . . . . . . Exploration Rate (%) 52 | 2 30 55 61 75 88 82 61 76 58 38 26 21 58 52 70 31 Regions Visited 16 Branch Regions 7 Pre-discovered Areas 5 | . . 2 1 . . . . . . . . . 1 . 1 . Known Exits Taken 6 | . 1 . . . 1 . 1 . 1 . 1 1 . . . . Unknown Exits Taken 7 | 1 . 1 1 1 . . . . . . . . 1 1 1 . Scrap Searched 4 | . . 1 . 2 . . . . . . . . . 1 . . Spaces Dug 17 | . . . . . . . . . 1 11 . . . 5 . . Terrain Destroyed 399 | . . . . . 60 . . 43 50 66 97 26 3 32 . 22 Melee . | . . . . . . . . . . . . . . . . . Projectile 104 | . . . . . . . . 4 50 2 7 15 3 17 . 6 AOE 295 | . . . . . 60 . . 39 . 64 90 11 . 15 . 16 Terrain Rammed . | . . . . . . . . . . . . . . . . . Walls Destroyed . | . . . . . . . . . . . . . . . . . Machines Disabled . | . . . . . . . . . . . . . . . . . Actions | -11 -10 -10 -10 -9 -8 -8 -8 -8 -8 -8 -8 -7 -7 -7 -7 -6 --------- Run | Scr Mat Min Exi Min Mat Gar Mat Gar Mat Gar Mat Fac Low Low Dat Pro Total 8367 | . 145 358 410 498 1259 738 690 596 735 618 197 1015 413 308 101 286 Wait 350 | . . 15 . 2 122 2 1 1 4 168 5 12 . . . 18 Move 7034 | . 130 302 405 453 938 654 647 486 641 400 149 865 403 286 95 180 Hop . | . . . . . . . . . . . . . . . . . Pick Up 86 | . 2 2 3 6 26 6 2 5 10 2 5 12 2 . 1 2 Fast Attach 72 | . 1 5 . 5 21 5 3 4 6 3 . 13 . 1 2 3 Attach 58 | . . 6 1 1 9 . . 5 . 5 1 15 . 1 . 14 Detach 18 | . . . . 3 2 . . 1 . 3 . 7 . 1 . 1 Swap 41 | . . 1 . 1 13 1 1 6 1 4 7 4 1 . . 1 Drop 108 | . 1 4 . 5 24 12 5 5 9 4 6 20 . 1 3 9 Fire 515 | . 10 23 1 11 104 . 29 75 64 25 24 66 7 18 . 58 Melee . | . . . . . . . . . . . . . . . . . Ram . | . . . . . . . . . . . . . . . . . Kick 12 | . 1 . . 11 . . . . . . . . . . . . Crush 3 | . . . . . . . 2 . . . . 1 . . . . Escape Stasis 12 | . . . . . . . . 8 . 4 . . . . . . Rewire 58 | . . . . . . 58 . . . . . . . . . . Trap . | . . . . . . . . . . . . . . . . . Miscellaneous . | . . . . . . . . . . . . . . . . . Route ------- -11/Scrapyard -10/Materials (discovered 3 exits: [*Mat] / *Min x2) -10/Mines -10/Exiles -9/Mines -8/Materials (discovered 4 exits: *Fac x3 / Gar) -8/Garrison (discovered 3 exits: *Mat x3) -8/Materials (discovered 3 exits: *Fac x2 / Gar) -8/Garrison (discovered 4 exits: *Mat x4) -8/Materials (discovered 4 exits: *Fac x3 / Gar) -8/Garrison (discovered 2 exits: *Mat x2) -8/Materials -7/Factory (discovered 3 exits: *Fac / *Low x2) -7/Lower Caves -7/Lower Caves -7/Data Miner -6/Proximity Caves History --------- Turn | Location | Event 1 | -11/Scrapyard | Discovered new exit (range 0) 1 | -11/Scrapyard | Entered Materials 138 | -10/Materials | Discovered new exit (range 8) 236 | -10/Materials | Identified exit to Mines 270 | -10/Materials | Entered Mines 317 | -10/Mines | Build established: Mutant 522 | -10/Mines | Learned location of Storage (-9) 566 | -10/Mines | Learned location of Zion (-6) 575 | -10/Mines | Deemed a non-threat by the Exiles lab entrance 644 | -10/Mines | Assembled infested the area 691 | -10/Mines | Met 8R-AWN 693 | -10/Mines | Core integrity fell below 50% 730 | -10/Mines | Lost 6 parts (1p3n2w) 744 | -10/Mines | Found a damaged Exp. Sensor Array with a note attached 746 | -10/Mines | Found Prototype Device 830 | -10/Mines | Discovered new exit (range 5) 837 | -10/Mines | Entered Exiles 881 | -10/Exiles | Welcomed by 8R-AWN 915 | -10/Exiles | Met EX-HEX 973 | -10/Exiles | Met EX-BIN 1047 | -10/Exiles | Build established: Scavenger-Mutant 1065 | -10/Exiles | Learned about 8R-AWN's background 1258 | -10/Exiles | Aligned with FarCom system 1259 | -10/Exiles | Given EX-Vault access code 1303 | -10/Exiles | Opened EX-Vault 1343 | -10/Exiles | Warned to stay clear of 0b10 Research branches 1525 | -10/Exiles | Met EX-DEC 1583 | -10/Exiles | Attacked by the Exiles 1597 | -10/Exiles | Discovered new exit (range 10) 1614 | -10/Exiles | Entered Mines 1717 | -9/Mines | Received a Rocket Launcher from a helpful Derelict 2168 | -9/Mines | YI-UF0 nonchalantly dropped a Grenade Launcher on the ground 2239 | -9/Mines | Destroyed YI-UF0 2263 | -9/Mines | Found Prototype Storage 2263 | -9/Mines | Identified YI-UF0's Bottomless Matter Pit 2270 | -9/Mines | Found Prototype Launcher 2270 | -9/Mines | Identified YI-UF0's Doublenader 2338 | -9/Mines | Discovered new exit (range 10) 2549 | -9/Mines | Entered Materials 2549 | -8/Materials | Evolved 4 slots: Propulsion x1, Utility x3 2550 | -8/Materials | Identified Exp. Sensor Array 3203 | -8/Materials | Discovered new exit (range 14) 3364 | -8/Materials | Repaired Broken Exp. Sensor Array 3627 | -8/Materials | Repaired Hrd. Medium Armor Plating 3678 | -8/Materials | Repaired Adv. Heat Sink 4094 | -8/Materials | Build established: Mutant 4164 | -8/Materials | Core integrity fell below 50% 4174 | -8/Materials | Destroyed 7 combat bots 4196 | -8/Materials | Discovered new exit (range 9) 4204 | -8/Materials | Lost 11 parts (3p2n4u2w) 4209 | -8/Materials | Found Prototype Device 4666 | -8/Materials | Discovered new exit (range 16) 4711 | -8/Materials | Identified exit to Garrison 4711 | -8/Materials | Entered Garrison 4711 | -8/Garrison | Discovered recently destroyed garrison 5292 | -8/Garrison | Discovered new exit (range 10) 5492 | -8/Garrison | Build established: Commander-Mutant 5614 | -8/Garrison | Discovered new exit (range 11) 5791 | -8/Garrison | Attempted to access garrison exit controls, blocked by remote lockdown 6082 | -8/Garrison | Attempted to access garrison exit controls, blocked by remote lockdown 6265 | -8/Garrison | Discovered new exit (range 11) 6310 | -8/Garrison | Learned Materials security intel 6326 | -8/Garrison | Entered Materials 6326 | -8/Materials | Accompanied by 8 allies 6691 | -8/Materials | Discovered new exit (range 4) 6726 | -8/Materials | First assault squad dispatched 7088 | -8/Materials | Build established: Mutant 7307 | -8/Materials | Discovered new exit (range 20) 7980 | -8/Materials | Identified exit to Garrison 7980 | -8/Materials | Entered Garrison 8044 | -8/Garrison | Triggered checkpoint 8052 | -8/Garrison | Rescued a captive Derelict 8054 | -8/Garrison | Rescued a captive Derelict 8268 | -8/Garrison | Triggered checkpoint 8372 | -8/Garrison | Triggered checkpoint 8410 | -8/Garrison | Discovered new exit (range 10) 8433 | -8/Garrison | Heavy support dispatched to Materials 8695 | -8/Garrison | Discovered new exit (range 12) 8730 | -8/Garrison | Core integrity fell below 20% 8770 | -8/Garrison | Triggered checkpoint 8850 | -8/Garrison | Discovered new exit (range 29) 8850 | -8/Garrison | Discovered new exit (range 72) 8850 | -8/Garrison | Discovered new exit (range 30) 8850 | -8/Garrison | Discovered new exit (range 42) 8988 | -8/Garrison | Triggered checkpoint 9059 | -8/Garrison | Heavy support dispatched to Materials 9076 | -8/Garrison | Triggered checkpoint 9135 | -8/Garrison | Lost 4 parts (1n1u2w) 9356 | -8/Garrison | Triggered checkpoint 9412 | -8/Garrison | Entered Materials 9689 | -8/Materials | Found Powered Armor 9693 | -8/Materials | Found Powered Armor 9704 | -8/Materials | Found Powered Armor 10261 | -8/Materials | Identified exit to Factory 11229 | -8/Materials | Identified exit to Garrison 11229 | -8/Materials | Entered Garrison 11390 | -8/Garrison | Triggered checkpoint 11413 | -8/Garrison | Triggered checkpoint 11590 | -8/Garrison | Discovered new exit (range 14) 11782 | -8/Garrison | Discovered new exit (range 10) 12478 | -8/Garrison | Entered Materials 12879 | -8/Materials | Discovered exit to Factory (range 7) 12926 | -8/Materials | Entered Factory 12926 | -7/Factory | Evolved 2 slots: Propulsion x1, Utility x1 13129 | -7/Factory | Discovered new exit (range 8) 13166 | -7/Factory | Identified Active Sensor Suite 13167 | -7/Factory | Identified exit to Factory 13459 | -7/Factory | Build established: Scavenger-Skirmisher 14033 | -7/Factory | Identified exit to Lower Caves 14325 | -7/Factory | Build established: Skirmisher 14539 | -7/Factory | Fabricated Imp. Recalibrator? 14961 | -7/Factory | Lost 4 parts (1n3u) 14986 | -7/Factory | Build established: Mutant 15086 | -7/Factory | System corruption reached 10% 15215 | -7/Factory | Entered Lower Caves 15326 | -7/Lower Caves | Met a Warlord Commander 15327 | -7/Lower Caves | Learned location of Warlord (-5) 15331 | -7/Lower Caves | Found Encrypted Comm Array 15705 | -7/Lower Caves | Discovered new exit (range 7) 15894 | -7/Lower Caves | Entered another Lower Caves area 16304 | -7/Lower Caves | Encountered a Warlord checkpoint 16369 | -7/Lower Caves | Discovered new exit (range 12) 16399 | -7/Lower Caves | Entered Data Miner 16400 | -7/Data Miner | Discovered new exit (range 6) 16448 | -7/Data Miner | Met Data Miner 16477 | -7/Data Miner | Learned location of Section 7 (-2) 16477 | -7/Data Miner | Acquired the access code to Warlord's prototype stash 16504 | -7/Data Miner | Received God Mode back door access code from Data Miner 16557 | -7/Data Miner | Entered Proximity Caves 16789 | -6/Proximity Caves | Escorted by Enhanced Grunt 16789 | -6/Proximity Caves | Attracted the attention of an 0b10 outpost 16872 | -6/Proximity Caves | Spotted B-75 Beast 16874 | -6/Proximity Caves | Found Prototype Device 16874 | -6/Proximity Caves | Identified Exp. Thermal Shield 16924 | -6/Proximity Caves | Lost 7 parts (1n3u3w) 16940 | -6/Proximity Caves | Core integrity fell below 50% 16965 | -6/Proximity Caves | Destroyed 8 combat bots 16980 | -6/Proximity Caves | Lost 5 parts (1n1u3w) 17019 | -6/Proximity Caves | Destroyed B-75 Beast 17032 | -6/Proximity Caves | Core integrity fell below 20% 17041 | -6/Proximity Caves | Destroyed by H-66 Slayer with Gauss Rifle Last Messages --------------- 17019_ B-75 Beast destroyed. 17023_ System corrupted: Substantial component data lost. 17025_ Penetrated by Slug. 17027_ EM Pulse Cannon destroyed. 17029_ Acquired 4 matter. 17029_ Slug penetrates Wall. 17029_ Biometal Leg destroyed. 17031_ Slug penetrates Wall. 17036_ Wall collapses. 17036_ Dropped Huge Storage Unit. 17037_ Dropped Mic. Fission Core. 17037_ Dropped Adv. Phase Shifter. 17038_ Dropped EM Pulse Cannon. 17038_ Penetrated by Slug. 17039_ Dropped Exp. Thermal Shield. 17039_ Penetrated by Slug. 17039_ Exp. Sensor Array destroyed. 17039_ Penetrated by Slug. 17039_ Acquired 11 matter. 17041_ Penetrated by Slug. Map ----- +----------------------------------------------------+ | ????????????????????????????????? ?????????????? | | ????????????????????????????????? ?????????????? | | ????????????????????????????????? ?????????????? | | ??????????????????????????????### ?????????????? | | ??????????????????????????????# ??????????????? | | ??????????????????????????????# ??????????????? | | ?????????????????????????????## "???????????????? | | ????????????????????? ??????#" "???????????????? | | ????????????????????# #?###### ###?????????????? | | ????????????????????# ?? ##????????????? | | ????????????????????# #???# % #????????????? | | ?????????#####??????# #??## ###??????????? | | ????##### ####??# #??# ]= % #??????#???? | | ????# ?? #??# #??## !% #????? #???? | | ????# ????# #??# #??#" # #????? ##??? | | ?#### #?????# #??# ##### % # #????? ##?? | | ?# #??????# #### #?# % # #????# ##? | | ## ####???# # #?# % "#*##### ## | | ## ##### ###%; "#% # | | h % ; g ""# # | | % ;;###### #### ## ## | | #### ###h ! #??# #??###? | | ##??# ## ;###### #??# ## #??? | | ##??## % ### #??# #??? | | ######? ## #### ####### | | ????? ;@;% # | | ?????? ##### ; ; # | | ????? ??????# #; *];##### ##" """ # | | ???????????# ###! &! #?## # ##" """"""" # | | ??????????# ##?##!!!%##??#### ##" """ " # | | ??????????########???#][%##??????# #"""""""""# # | | ?????????????????????#####???????# """""""""## # | | ?????????????????????????????????# """"" ## # | | ?????????????????????????????????# ## # | | ?????????????????????????????????# # | | ?????????????????????????????????# ?? # | | ?????????????????????????????????########?????#### | | ?????????????????????????????????????????????????? | | ?????????????????????????????????????????????????? | | ?????????????????????????????????????????????????? | | ?????????????????????????????????????????????????? | | ?????????????????????????????????????????????????? | | ?????????????????????????????????????????????????? | | ?????????????????????????????????????????????????? | | ?????????????????????????????????????????????????? | | ?????????????????????????????????????????????????? | | ?????????????????????????????????????????????????? | | | | | | | +----------------------------------------------------+ Best States ------------- Heat Dissipation 65 Energy Generation 19 Energy Capacity 315 Matter Stores 300 Matter Capacity 300 Sight Range 16 Robot Scan Range 20 Terrain Scan Density 10 Armor Coverage 825 Resistance: KI 30 Resistance: TH 30 Weapon Shielding 33 Phase Shifting 15 Evasion (%) 55 Targeting Accuracy 14 Target Analysis 5 Recoil Reduction 4 Item Schematics ----------------- Huge Storage Unit | -10/Materials | Hacked Hcp. Storage Unit | -10/Mines | Hacked Cargo Storage Unit | -10/Mines | Hacked Exp. Sensor Array | -8/Materials | Scanalyzed Combat Drone Bay | -7/Data Miner | Free Lgt. Regenerative Plating | -7/Data Miner | Free Cld. Aerolev Unit | -7/Data Miner | Free Thermal Defense Suite | -7/Data Miner | Free Gui. EMP Blaster | -7/Data Miner | Free Arm. Medium Treads | -7/Data Miner | Free Adv. System Restoration Module | -7/Data Miner | Free Hyp. Gauss Cannon | -7/Data Miner | Free Imp. Linear Gravjet | -7/Data Miner | Free Lyr. Medium Armor Plating | -7/Data Miner | Free Robot Schematics ------------------ A-15 Conveyor | -7/Data Miner | Free R-10 Processor | -7/Data Miner | Free M-14 Sweeper | -7/Data Miner | Free B-48 Gladiator | -7/Data Miner | Free Fabricated ------------ Imp. Recalibrator | x2 | -7/Factory | Preloaded Alien Tech Used ----------------- None Achievements -------------- None Challenges ------------ None Game ------ Seed HeatCoordinationShotgun Manual? 0 Play Time 01:16:34 Cumulative 400.5 hours Start 2022.08.29 @ 13:26:21 End 2022.08.29 @ 16:51:59 Sessions 3 Manual Loads 0 Difficulty Rogue Special Mode None Game No. 414 Rogue 414 Adventurer 0 Explorer 0 Win Type - Total 31 Types 18/3/3/1/2/1/3/0/0 Lore% 91 Gallery% 92 Achievement% 81 Wizard Run 0 Options --------- ASCII 0 Keyboard 0 Movement Arrows Keybinds 0 Fullscreen 2 Font 24/Smallcaps Map View 76x50 Tactical HUD 1 Map Filters NONE Filters NONE Steam 1 RUN: 452f29b2-d5f2-4c3c-9e71-4aa20e265127